[Event "French Top 16-A 2024"]
[Site "Chartres"]
[Date "2024.06.01"]
[Round "1.6"]
[White "Wlodarczyk, Cyril"]
[Black "Macon, Arthur"]
[Result "1-0"]
[ECO "A14"]
[WhiteElo "2123"]
[BlackElo "2352"]
[Annotator "RC"]
[PlyCount "143"]
[EventDate "2024.06.01"]
[EventType "team-tourn"]
[EventCountry "FRA"]
[SourceTitle "playchess.com"]
[Source "ChessBase"]
[SourceQuality "1"]
[TimeControl "40/5400+30:1800+30"]

1. Nf3 {[%emt 0:00:04]} Nf6 {[%emt 0:00:38]} 2. g3 {[%emt 0:00:14]} d5 {[%emt 0:06:38]} 3. Bg2 {[%emt 0:00:24]} e6 {[%emt 0:00:09]} 4. O-O {[%emt 0:00:51]} Be7 {[%emt 0:00:11]} 5. c4 {[%emt 0:01:08]} O-O {[%emt 0:00:12]} 6. b3 {[%emt 0:00:43]} a5 {[%emt 0:05:38]} 7. a3 {[%emt 0:05:01]} c6 {[%emt 0:05:25]} 8. Bb2 {[%emt 0:01:27]} b5 {[%emt 0:04:47]} 9. cxb5 {[%emt 0:03:09]} cxb5 {[%emt 0:00:04]} 10. Nc3 {[%emt 0:02:13]} Ba6 {[%emt 0:06:40]} 11. Ne5 {[%emt 0:04:37]} Bd6 {[%emt 0:03:44]} 12. d4 {[%emt 0:01:44]} Nbd7 {[%emt 0:07:40]} 13. f4 {[%emt 0:12:14]} Rc8 {[%emt 0:05:03]} 14. Re1 {[%emt 0:09:01]} b4 {[%emt 0:04:39]} 15. Na4 {[%emt 0:01:27]} Qe7 {[%emt 0:03:17]} 16. axb4 {[%emt 0:09:37]} Bxb4 {[%emt 0:00:24]} 17. Rf1 {[%emt 0:00:07]} Rc7 {[%emt 0:10:11]} 18. Bf3 {[%emt 0:05:18]} Rfc8 {[%emt 0:02:43]} 19. Rc1 {[%emt 0:00:32]} Rxc1 {[%emt 0:02:29]} 20. Bxc1 {[%emt 0:00:08]} Bb5 {[%emt 0:03:27]} 21. Nxd7 {[%emt 0:04:25]} Nxd7 {[%emt 0:00:21]} 22. Be3 {[%emt 0:03:38]} Qd6 {[%emt 0:01:12]} 23. f5 {[%emt 0:06:27]} exf5 {[%emt 0:02:22]} 24. Bf4 {[%emt 0:01:17]} Qe6 {[%emt 0:01:15]} 25. h3 {[%emt 0:01:58]} Nf6 {[%emt 0:04:01]} 26. Be5 {[%emt 0:01:24]} Ne4 {[%emt 0:01:18]} 27. Bxe4 {[%emt 0:00:28]} fxe4 {[%emt 0:01:01]} 28. g4 {[%emt 0:02:43]} Qa6 {[%emt 0:02:05]} 29. Rf2 {[%emt 0:02:55]} e3 {[%emt 0:00:27]} 30. Rg2 {[%emt 0:00:28]} Qe6 {[%emt 0:04:12]} 31. Qb1 {[%emt 0:05:03]} f6 {[%emt 0:03:39]} 32. Bf4 {[%emt 0:00:06]} g5 {[%emt 0:02:44]} 33. Bg3 {[%emt 0:00:19]} Ba3 {[%emt 0:02:57]} 34. Qa2 {[%emt 0:02:02]} Rc1+ {[%emt 0:01:14]} 35. Kh2 {[%emt 0:00:05]} Bb4 {[%emt 0:02:06]} 36. Nc5 {[%emt 0:01:04]} Bxc5 {[%emt 0:02:37]} 37. dxc5 {[%emt 0:00:01]} Rxc5 {[%emt 0:00:01]} 38. Qxa5 {[%emt 0:00:16]} Qd7 {[%emt 0:00:43]} 39. Qb6 {[%emt 0:00:34]} Qc6 {[%emt 0:00:57]} 40. Qd8+ {[%emt 0:00:20]} Qe8 {[%emt 0:00:46]} 41. Qxf6 {[%emt 0:30:44]} Qg6 {[%emt 0:12:34]} 42. Qe7 {[%emt 0:00:00]} Rc8 {[%emt 0:01:16]} 43. Qxe3 {[%emt 0:00:00]} Re8 {[%emt 0:01:23]} 44. Qd2 {[%emt 0:00:00]} Bc6 {[%emt 0:01:33]} 45. Rf2 {[%emt 0:00:00]} h6 {[%emt 0:01:31]} 46. Qc3 {[%emt 0:00:00]} Ba8 {[%emt 0:02:45]} 47. Be5 {[%emt 0:00:39]} Qe6 {[%emt 0:03:06]} 48. Bd4 {[%emt 0:00:15]} Rf8 {[%emt 0:01:30]} 49. Rxf8+ {[%emt 0:00:59]} Kxf8 {[%emt 0:00:01]} 50. e3 {[%emt 0:00:42]} Bc6 {[%emt 0:02:21]} 51. Qb4+ {[%emt 0:00:55]} Kg8 {[%emt 0:03:01]} 52. Qb8+ {[%emt 0:00:30]} Be8 {[%emt 0:00:15]} 53. b4 {[%emt 0:00:57]} h5 {[%emt 0:04:20]} 54. Qd8 {[%emt 0:04:02]} Qg6 {[%emt 0:00:06]} 55. Qxd5+ {[%emt 0:00:58]} Kh7 {[%emt 0:01:28]} 56. e4 {[%emt 0:01:44]} hxg4 {[%emt 0:00:45]} 57. Qe5 {[%emt 0:01:12]} g3+ {[%emt 0:00:35]} 58. Kxg3 {[%emt 0:00:09]} Qf7 {[%emt 0:00:19]} 59. Qxg5 {[%emt 0:00:49]} Bd7 {[%emt 0:00:38]} 60. b5 {[%emt 0:02:02]} Qb3+ {[%emt 0:00:01]} 61. Kf4 {[%emt 0:01:11]} Qf7+ {[%emt 0:00:48]} 62. Bf6 {[%emt 0:00:44]} Bxb5 {[%emt 0:00:40]} 63. Qxb5 {[%emt 0:00:15]} Qc7+ {[%emt 0:00:29]} 64. e5 {[%emt 0:00:36]} Qc1+ {[%emt 0:00:14]} 65. Ke4 {[%emt 0:01:27]} Qh1+ {[%emt 0:00:49]} 66. Kd4 {[%emt 0:00:07]} Qg1+ {[%emt 0:00:20]} 67. Kd5 {[%emt 0:00:20]} Qg2+ {[%emt 0:00:35]} 68. Kd6 {[%emt 0:00:08]} Qd2+ {[%emt 0:00:28]} 69. Kc7 {[%emt 0:00:40]} Qc3+ {[%emt 0:00:34]} 70. Kd8 {[%emt 0:00:12]} Kh6 {[%emt 0:00:34]} 71. Qd7 {[%emt 0:00:18]} Qg3 {[%emt 0:00:32]} 72. Qg7+ {[%emt 0:00:16]} 1-0

[Event "French Top 16-A 2024"]
[Site "Chartres"]
[Date "2024.06.01"]
[Round "1.7"]
[White "Degraeve, Jean-Marc"]
[Black "Migot, Tangi"]
[Result "1-0"]
[ECO "B22"]
[WhiteElo "2463"]
[BlackElo "2326"]
[Annotator "TA"]
[PlyCount "65"]
[EventDate "2024.06.01"]
[EventType "team-tourn"]
[EventCountry "FRA"]
[SourceTitle "playchess.com"]
[Source "ChessBase"]
[SourceQuality "1"]
[TimeControl "40/5400+30:1800+30"]

{[%evp 12,65,15,15,21,10,9,0,24,24,29,26,40,12,61,68,77,74,104,82,114,114,143,150,175,173,177,142,134,148,138,126,129,120,125,118,141,135,130,125,167,164,170,170,170,165,187,186,185,188,187,182,283,297,295,311]} 1. e4 {[%emt 0:00:04]} c5 {[%emt 0:00:09]} 2. Nf3 {[%emt 0:00:18]} e6 {[%emt 0:00:47]} 3. c3 {[%emt 0:00:44]} d5 {[%emt 0:01:00]} 4. exd5 {[%emt 0:00:54]} Qxd5 {[%emt 0:01:05]} 5. d4 {[%emt 0:00:20]} Nf6 {[%emt 0:00:33]} 6. Na3 {[%emt 0:01:32]} Nc6 {[%emt 0:01:57]} 7. Be3 {[%emt 0:01:42] Threatening Nb5.} Ng4 {[%emt 0:01:47]} 8. Nc4 {[%emt 0:10:49]} b5 {[%emt 0:14:44] [#]} 9. Nce5 {[%emt 0:02:22]} Ngxe5 {[%emt 0:21:17] The position is equal.} (9... Nxe3 10. fxe3) 10. dxe5 {[%emt 0:03:11] Strongly threatening Qxd5.} Rb8 {[%emt 0:06:53]} 11. a4 {[%emt 0:11:25]} Qxd1+ {[%emt 0:03:24]} 12. Kxd1 {[%emt 0:01:15]} bxa4 {[%emt 0:04:39]} (12... b4 $11 {deserves consideration.}) 13. Kc1 $1 $14 {[%emt 0:00:40]} Bd7 {[%emt 0:00:45]} 14. Rxa4 {[%emt 0:00:11]} Nxe5 {[%emt 0:04:56]} 15. Rxa7 {[%emt 0:00:08]} Nc6 {[%emt 0:00:12]} 16. Ra6 {[%emt 0:01:38] White is more active.} Bd6 {[%emt 0:02:33]} 17. Nd2 {[%emt 0:02:29][%cal Bf3d2,Bd2e4,Be4c5][%mdl 32]} Ke7 {[%emt 0:19:52]} 18. Ne4 {[%emt 0:01:10]} Ra8 {[%emt 0:01:10]} 19. Bxc5 {[%emt 0:01:05]} Bxc5 {[%emt 0:00:08]} 20. Nxc5 {[%emt 0:00:04]} Ne5 {[%emt 0:02:06]} 21. f4 {[%emt 0:04:05]} Ng4 {[%emt 0:01:38]} 22. Be2 {[%emt 0:00:16]} Rxa6 {[%emt 0:01:09]} 23. Nxa6 {[%emt 0:00:11]} Ne3 {[%emt 0:02:39]} 24. Bf3 {[%emt 0:55:57]} Bb5 {[%emt 0:02:22]} 25. Nc5 {[%emt 0:00:00]} ({Don't do} 25. Re1 Nxg2 26. Bxg2 Bxa6 $14) 25... Rd8 {[%emt 0:02:15]} 26. Re1 {[%emt 0:00:00]} Nf1 {[%emt 0:00:46]} 27. h3 {[%emt 0:00:00]} Nd2 {[%emt 0:01:00]} 28. Be2 {[%emt 0:00:00]} Nc4 {[%emt 0:02:08]} 29. b3 {[%emt 0:00:00]} Nd6 {[%emt 0:00:05]} 30. Bxb5 {[%emt 0:00:00]} Nxb5 {[%emt 0:00:05]} 31. c4 {[%emt 0:00:00]} Nd4 {[%emt 0:01:06]} (31... Nd6 $142 32. Kb2 h5) 32. Kb2 $18 {[%emt 0:00:00]} Nc6 {[%emt 0:00:47]} 33. Kc3 {[%emt 0:00:00] Prevents Rd2.   Weighted Error Value: White=0.05 (flawless) /Black=0.16 (very precise) .  Mistake:       	---       	Black=2      Inaccurate:     	White=1     	Black=3      OK:         	White=9     	Black=8      Best:        	White=3     	---        Strong:       	White=1     	---} 1-0

[Event "French Top 16-A 2024"]
[Site "Chartres"]
[Date "2024.06.01"]
[Round "1.7"]
[White "Jossien, Arnaud"]
[Black "Malassagne, Isabelle"]
[Result "0-1"]
[ECO "D80"]
[WhiteElo "2247"]
[BlackElo "2090"]
[Annotator "RC"]
[PlyCount "62"]
[EventDate "2024.06.01"]
[EventType "team-tourn"]
[EventCountry "FRA"]
[SourceTitle "playchess.com"]
[Source "ChessBase"]
[SourceQuality "1"]
[TimeControl "40/5400+30:1800+30"]

1. d4 {[%emt 0:00:03]} Nf6 {[%emt 0:00:05]} 2. c4 {[%emt 0:00:07]} g6 {[%emt 0:00:04]} 3. Nc3 {[%emt 0:00:06]} d5 {[%emt 0:00:02]} 4. h4 {[%emt 0:00:11]} c5 {[%emt 0:01:32]} 5. dxc5 {[%emt 0:00:08]} d4 {[%emt 0:01:24]} 6. Nb5 {[%emt 0:00:06]} e5 {[%emt 0:20:15]} 7. e3 {[%emt 0:04:56]} Bxc5 {[%emt 0:03:10]} 8. exd4 {[%emt 0:05:42]} exd4 {[%emt 0:00:15]} 9. Nf3 {[%emt 0:06:34]} O-O {[%emt 0:02:37]} 10. Bd3 {[%emt 0:05:24]} Re8+ {[%emt 0:04:59]} 11. Kf1 {[%emt 0:01:11]} a6 {[%emt 0:02:09]} 12. Na3 {[%emt 0:00:38]} Bg4 {[%emt 0:01:14]} 13. Bg5 {[%emt 0:10:35]} Qd6 {[%emt 0:07:48]} 14. Nc2 {[%emt 0:13:19]} Nc6 {[%emt 0:00:35]} 15. Qd2 {[%emt 0:10:27]} h5 {[%emt 0:12:52]} 16. Bf4 {[%emt 0:09:19]} Qd7 {[%emt 0:01:06]} 17. b4 {[%emt 0:03:14]} Bf8 {[%emt 0:03:41]} 18. b5 {[%emt 0:11:20]} axb5 {[%emt 0:00:31]} 19. cxb5 {[%emt 0:00:06]} Bxf3 {[%emt 0:09:25]} 20. gxf3 {[%emt 0:00:07]} Ne5 {[%emt 0:02:49]} 21. Bxe5 {[%emt 0:00:29]} Rxe5 {[%emt 0:00:02]} 22. Kg2 {[%emt 0:04:02]} Bg7 {[%emt 0:05:44]} 23. a4 {[%emt 0:01:33]} Nd5 {[%emt 0:02:26]} 24. a5 {[%emt 0:04:15]} Re3 {[%emt 0:08:43]} 25. Be4 {[%emt 0:04:26]} Nf4+ {[%emt 0:01:12]} 26. Kg1 {[%emt 0:00:14]} Rxe4 {[%emt 0:00:21]} 27. Ra4 {[%emt 0:01:00]} Ne2+ {[%emt 0:00:56]} 28. Kg2 {[%emt 0:00:20]} Ree8 {[%emt 0:00:59]} 29. a6 {[%emt 0:02:38]} bxa6 {[%emt 0:00:05]} 30. Rxa6 {[%emt 0:00:06]} Qxb5 {[%emt 0:00:37]} 31. Rxa8 {[%emt 0:01:05]} Rxa8 {[%emt 0:00:02]} 0-1

[Event "French Top 16-A 2024"]
[Site "Chartres"]
[Date "2024.06.01"]
[Round "1.8"]
[White "Warnier, Yanis"]
[Black "Cochet, Caroline"]
[Result "1-0"]
[ECO "B07"]
[WhiteElo "2171"]
[BlackElo "1972"]
[Annotator "RC"]
[PlyCount "73"]
[EventDate "2024.06.01"]
[EventType "team-tourn"]
[EventCountry "FRA"]
[SourceTitle "playchess.com"]
[Source "ChessBase"]
[SourceQuality "1"]
[TimeControl "40/5400+30:1800+30"]

1. e4 {[%emt 0:00:06]} d6 {[%emt 0:00:42]} 2. d4 {[%emt 0:00:10]} Nf6 {[%emt 0:00:46]} 3. Nc3 {[%emt 0:00:10]} g6 {[%emt 0:02:16]} 4. Be3 {[%emt 0:02:16]} Bg7 {[%emt 0:04:09]} 5. f3 {[%emt 0:00:38]} Nc6 {[%emt 0:06:21]} 6. Qd2 {[%emt 0:07:43]} O-O {[%emt 0:11:05]} 7. Nge2 {[%emt 0:02:05]} e5 {[%emt 0:04:32]} 8. d5 {[%emt 0:27:15]} Ne7 {[%emt 0:03:52]} 9. O-O-O {[%emt 0:00:24]} Ne8 {[%emt 0:06:50]} 10. g3 {[%emt 0:09:01]} f5 {[%emt 0:06:01]} 11. Bg2 {[%emt 0:05:10]} Nf6 {[%emt 0:01:28]} 12. h3 {[%emt 0:00:40]} Kh8 {[%emt 0:10:05]} 13. Kb1 {[%emt 0:13:41]} Bd7 {[%emt 0:03:55]} 14. f4 {[%emt 0:02:52]} Nxe4 {[%emt 0:06:39]} 15. Nxe4 {[%emt 0:00:29]} fxe4 {[%emt 0:00:06]} 16. g4 {[%emt 0:01:42]} Ng8 {[%emt 0:05:15]} 17. Bxe4 {[%emt 0:03:25]} Qe7 {[%emt 0:02:53]} 18. Bg2 {[%emt 0:01:46]} Rae8 {[%emt 0:02:39]} 19. Rhe1 {[%emt 0:00:24]} exf4 {[%emt 0:06:11]} 20. Nxf4 {[%emt 0:01:01]} Qf6 {[%emt 0:01:33]} 21. Nd3 {[%emt 0:01:02]} Bb5 {[%emt 0:01:16]} 22. c3 {[%emt 0:01:53]} Bxd3+ {[%emt 0:01:26]} 23. Qxd3 {[%emt 0:00:16]} Qh4 {[%emt 0:02:10]} 24. Re2 {[%emt 0:10:27]} Nh6 {[%emt 0:03:00]} 25. Rde1 {[%emt 0:05:55]} Nf7 {[%emt 0:01:21]} 26. Bf2 {[%emt 0:00:26]} Qd8 {[%emt 0:00:07]} 27. Bd4 {[%emt 0:01:36]} Ne5 {[%emt 0:01:16]} 28. Qg3 {[%emt 0:00:32]} Rf7 {[%emt 0:00:39]} 29. h4 {[%emt 0:00:31]} Ref8 {[%emt 0:01:55]} 30. h5 {[%emt 0:00:16]} Qg5 {[%emt 0:01:14]} 31. hxg6 {[%emt 0:00:46]} hxg6 {[%emt 0:00:56]} 32. Rh1+ {[%emt 0:00:25]} Kg8 {[%emt 0:00:02]} 33. Qh3 {[%emt 0:01:08]} Rd8 {[%emt 0:00:55]} 34. Qh7+ {[%emt 0:00:40]} Kf8 {[%emt 0:00:04]} 35. Bxe5 {[%emt 0:00:36]} Bxe5 {[%emt 0:00:16]} 36. Rf1 {[%emt 0:00:26]} Rdd7 {[%emt 0:01:16]} 37. Ref2 {[%emt 0:01:07]} 1-0

[Event "French Top 16-A 2024"]
[Site "Chartres"]
[Date "2024.06.01"]
[Round "1.8"]
[White "Fischer, Julie"]
[Black "Guichard, Pauline"]
[Result "1/2-1/2"]
[ECO "C45"]
[WhiteElo "2092"]
[BlackElo "2362"]
[Annotator "RC"]
[PlyCount "105"]
[EventDate "2024.06.01"]
[EventType "team-tourn"]
[EventCountry "FRA"]
[SourceTitle "playchess.com"]
[Source "ChessBase"]
[SourceQuality "1"]
[TimeControl "40/5400+30:1800+30"]

1. e4 {[%emt 0:00:08]} e5 {[%emt 0:00:08]} 2. Nf3 {[%emt 0:00:16]} Nc6 {[%emt 0:00:07]} 3. d4 {[%emt 0:00:13]} exd4 {[%emt 0:00:08]} 4. Nxd4 {[%emt 0:00:37]} Nf6 {[%emt 0:00:14]} 5. Nxc6 {[%emt 0:01:03]} bxc6 {[%emt 0:00:06]} 6. Bd3 {[%emt 0:00:36]} d5 {[%emt 0:01:09]} 7. exd5 {[%emt 0:00:52]} cxd5 {[%emt 0:00:13]} 8. O-O {[%emt 0:00:26]} Be7 {[%emt 0:00:19]} 9. h3 {[%emt 0:01:37]} O-O {[%emt 0:03:00]} 10. Nd2 {[%emt 0:02:59]} Rb8 {[%emt 0:07:31]} 11. b3 {[%emt 0:02:49]} c5 {[%emt 0:04:24]} 12. Re1 {[%emt 0:03:17]} Be6 {[%emt 0:08:09]} 13. c4 {[%emt 0:07:34]} Qc7 {[%emt 0:04:43]} 14. Qc2 {[%emt 0:05:08]} a5 {[%emt 0:02:41]} 15. cxd5 {[%emt 0:10:12]} Bxd5 {[%emt 0:00:05]} 16. Bb2 {[%emt 0:01:06]} Rb6 {[%emt 0:11:14]} 17. Nc4 {[%emt 0:04:34]} Re6 {[%emt 0:01:16]} 18. Bf5 {[%emt 0:08:33]} Rxe1+ {[%emt 0:00:15]} 19. Rxe1 {[%emt 0:00:09]} Bd8 {[%emt 0:00:15]} 20. Ne3 {[%emt 0:07:50]} Bb7 {[%emt 0:09:20]} 21. Bxf6 {[%emt 0:01:40]} Bxf6 {[%emt 0:00:06]} 22. Bxh7+ {[%emt 0:00:13]} Kh8 {[%emt 0:00:03]} 23. Qf5 {[%emt 0:11:08]} Qe5 {[%emt 0:00:17]} 24. Qxe5 {[%emt 0:02:17]} Bxe5 {[%emt 0:00:05]} 25. Nc4 {[%emt 0:01:19]} Bc3 {[%emt 0:10:12]} 26. Rc1 {[%emt 0:05:41]} Bb4 {[%emt 0:03:34]} 27. Bf5 {[%emt 0:03:34]} Re8 {[%emt 0:07:56]} 28. Nd6 {[%emt 0:02:48]} Re7 {[%emt 0:00:05]} 29. Nxb7 {[%emt 0:04:06]} Rxb7 {[%emt 0:00:06]} 30. Rd1 {[%emt 0:00:22]} g6 {[%emt 0:00:28]} 31. Bd7 {[%emt 0:03:15]} Kg7 {[%emt 0:00:56]} 32. Rd3 {[%emt 0:01:22]} Rc7 {[%emt 0:06:56]} 33. Bb5 {[%emt 0:03:02]} Re7 {[%emt 0:00:05]} 34. Rd7 {[%emt 0:01:47]} Re1+ {[%emt 0:18:14]} 35. Kh2 {[%emt 0:00:14]} Re6 {[%emt 0:00:11]} 36. Bc4 {[%emt 0:02:56]} Rf6 {[%emt 0:00:05]} 37. f3 {[%emt 0:00:35]} Bc3 {[%emt 0:00:18]} 38. Kg1 {[%emt 0:00:18]} Rf4 {[%emt 0:02:47]} 39. a4 {[%emt 0:00:18]} Kf8 {[%emt 0:00:46]} 40. Kf1 {[%emt 0:01:29]} Ke8 {[%emt 0:00:08]} 41. Rc7 {[%emt 0:30:45]} Bb4 {[%emt 0:30:44]} 42. Ke2 {[%emt 0:01:23]} Rf5 {[%emt 0:01:07]} 43. Kd3 {[%emt 0:00:00]} Kf8 {[%emt 0:00:00]} 44. Ke4 {[%emt 0:00:00]} Bd2 {[%emt 0:00:00]} 45. Rd7 {[%emt 0:00:00]} Rf4+ {[%emt 0:00:00]} 46. Ke5 {[%emt 0:00:00]} Rf5+ {[%emt 0:00:00]} 47. Kd6 {[%emt 0:00:00]} Bb4 {[%emt 0:00:00]} 48. Kc7 {[%emt 0:00:00]} Rf6 {[%emt 0:00:00]} 49. Bd5 {[%emt 0:00:00]} Ke8 {[%emt 0:00:00]} 50. Rd8+ {[%emt 0:00:08]} Ke7 {[%emt 0:00:00]} 51. Rd7+ {[%emt 0:02:17]} Ke8 {[%emt 0:00:00]} 52. Rd8+ {[%emt 0:02:45]} Ke7 {[%emt 0:00:00]} 53. Rd7+ {[%emt 0:00:37]} 1/2-1/2

[Event "French Top 16-A 2024"]
[Site "Chartres"]
[Date "2024.06.01"]
[Round "1.9"]
[White "Karthik Venkataraman"]
[Black "Albornoz Cabrera, Carlos Daniel"]
[Result "1/2-1/2"]
[ECO "B66"]
[WhiteElo "2606"]
[BlackElo "2612"]
[Annotator "TA"]
[PlyCount "45"]
[EventDate "2024.06.01"]
[EventType "team-tourn"]
[EventCountry "FRA"]
[SourceTitle "playchess.com"]
[Source "ChessBase"]
[SourceQuality "1"]
[TimeControl "40/5400+30:1800+30"]

{[%evp 19,45,14,7,7,9,18,15,7,45,42,29,-65,-9,-70,-4,0,0,0,0,-40,0,0,7,-10,-13,-59,-52,-75]} 1. e4 {[%emt 0:00:03]} c5 {[%emt 0:00:18]} 2. Nf3 {[%emt 0:00:07]} d6 {[%emt 0:00:02]} 3. d4 {[%emt 0:00:07]} cxd4 {[%emt 0:00:05]} 4. Nxd4 {[%emt 0:00:04]} Nf6 {[%emt 0:00:04]} 5. Nc3 {[%emt 0:00:07]} a6 {[%emt 0:00:02]} 6. Bg5 {[%emt 0:00:08]} e6 {[%emt 0:00:04]} 7. f4 {[%emt 0:00:27]} h6 {[%emt 0:00:08]} 8. Bxf6 {[%emt 0:00:05]} Qxf6 {[%emt 0:00:19]} 9. Qd2 {[%emt 0:00:09]} Nc6 {[%emt 0:03:25]} 10. Nxc6 {[%emt 0:00:12]} bxc6 {[%emt 0:00:04] Black is weak on the light squares} 11. O-O-O {[%emt 0:00:06][%cal Oe4e5]} Qd8 {[%emt 0:03:34]} 12. Bc4 {[%emt 0:00:27]} Be7 {[%emt 0:02:04]} 13. Bb3 {[%emt 0:01:15] The position is equal.} O-O {[%emt 0:09:18] [#]} 14. h4 $1 {[%emt 0:02:08]} d5 {[%emt 0:03:27]} 15. Qe1 {[%emt 0:31:58]} (15. g4 $11) 15... Qc7 {[%emt 0:15:13]} (15... d4 $15) 16. Rf1 {[%emt 0:00:33]} (16. exd5 $1 $11 cxd5 (16... Qxf4+ 17. Kb1 $11) 17. f5) 16... Bb7 {[%emt 0:05:37]} (16... Rd8 $15 17. f5 Rb8) 17. g4 $1 $11 {[%emt 0:08:47][%cal Bg2g4,Bg4g5][%mdl 32]} Rad8 {[%emt 0:05:33]} 18. g5 {[%emt 0:04:10]} h5 {[%emt 0:02:28]} 19. f5 {[%emt 0:06:42]} g6 {[%emt 0:03:42]} (19... exf5 $15 20. exd5 (20. exf5 Bc8 $15) 20... g6) 20. fxe6 {[%emt 0:17:49]} fxe6 {[%emt 0:00:04]} 21. exd5 {[%emt 0:00:04]} exd5 {[%emt 0:00:50]} 22. Qe6+ {[%emt 0:05:35]} (22. Rxf8+ $11 {might be stronger.} Rxf8 23. Kb1 (23. Qe6+ Kh7 $17)) 22... Kg7 $15 {[%emt 0:00:17] White must now prevent ...Bc8.} 23. Ne2 {[%emt 0:00:05] Weighted Error Value: White=0.26 (precise) /Black=0.25 (precise) .  Mistake:       	White=3     	Black=3      Inaccurate:     	White=1     	Black=1      OK:         	White=4     	Black=5      Best:        	---       	Black=1      Strong:       	White=1     	---} 1/2-1/2

[Event "French Top 16-A 2024"]
[Site "Chartres"]
[Date "2024.06.01"]
[Round "1.9"]
[White "Alonso Rosell, Alvar"]
[Black "Pichot, Alan"]
[Result "0-1"]
[ECO "C00"]
[WhiteElo "2556"]
[BlackElo "2635"]
[Annotator "TA"]
[PlyCount "56"]
[EventDate "2024.06.01"]
[EventType "team-tourn"]
[EventCountry "FRA"]
[SourceTitle "playchess.com"]
[Source "ChessBase"]
[SourceQuality "1"]
[TimeControl "40/5400+30:1800+30"]

{[%evp 13,56,-14,5,12,22,3,14,16,18,0,11,0,-5,-12,-5,-15,-18,-14,-30,-70,-23,-52,-27,-120,-92,-83,-72,-64,-64,-71,-79,-150,-146,-140,-127,-333,-329,-349,-306,-902,-896,-905,-906,-881,-870]} 1. e4 {[%emt 0:00:03]} c5 {[%emt 0:01:20]} 2. Nf3 {[%emt 0:00:06]} e6 {[%emt 0:01:46]} 3. d3 {[%emt 0:00:07]} Nc6 {[%emt 0:00:38]} 4. g3 {[%emt 0:00:07]} d5 {[%emt 0:03:34]} 5. Qe2 {[%emt 0:00:02]} Nf6 {[%emt 0:01:50]} 6. Bg2 {[%emt 0:01:07]} Be7 {[%emt 0:01:03]} 7. O-O {[%emt 0:00:14]} b5 {[%emt 0:03:25]} 8. exd5 {[%emt 0:00:08]} exd5 {[%emt 0:07:36] [#]} 9. d4 $1 {[%emt 0:00:24]} c4 {[%emt 0:04:52]} 10. Be3 {[%emt 0:00:11] The position is equal.} O-O {[%emt 0:05:34]} 11. Ne5 {[%emt 0:10:43]} Bb7 {[%emt 0:06:25]} 12. Nc3 {[%emt 0:08:59]} b4 {[%emt 0:04:53]} 13. Na4 {[%emt 0:00:39]} Qc7 {[%emt 0:06:47]} 14. Ng4 {[%emt 0:28:12]} Ne4 {[%emt 0:07:03]} 15. f3 {[%emt 0:33:27]} Nd6 {[%emt 0:09:20]} 16. c3 {[%emt 0:04:18]} Qa5 {[%emt 0:13:59]} ({Black should play} 16... h5 $15 17. Ne5 Nxe5 18. dxe5 Nf5) 17. Nc5 {[%emt 0:03:47]} bxc3 {[%emt 0:03:49]} 18. f4 {[%emt 0:02:42]} (18. bxc3 $11 {keeps the balance.} Bc8 (18... Qxc3 19. Rac1 $15) 19. Rac1) 18... cxb2 {[%emt 0:10:38]} 19. Nxb7 {[%emt 0:01:43]} Nxb7 {[%emt 0:00:36]} ({Of course not} 19... bxa1=Q $6 20. Nxa5 Nxd4 21. Qd2 $11) 20. Qxb2 {[%emt 0:00:05]} Nd6 $36 {[%emt 0:01:11][%mdl 2048] Black is more active.} 21. Bd2 {[%emt 0:00:40]} Qc7 {[%emt 0:02:44]} ({But not} 21... Rab8 $6 22. Qxb8 Qxd2 23. Qc7 Qxd4+ 24. Kh1 $11) 22. Bxd5 {[%emt 0:00:54]} (22. Rae1 $142) 22... Rab8 $17 {[%emt 0:00:03]} 23. Qc3 {[%emt 0:00:50][%cal Og4e5]} Nb4 {[%emt 0:00:08]} 24. Bf3 {[%emt 0:01:22] [#] White does not recover from this.} (24. Ne3 $17) 24... Nb5 $19 {[%emt 0:00:23]} 25. Qc1 {[%emt 0:01:37]} Nxd4 {[%emt 0:00:53]} 26. Bd1 $2 {[%emt 0:00:31]} (26. Bc3 Bc5 27. Kg2) 26... Nd3 {[%emt 0:01:18] A dynamic duo of knights. Black is clearly winning.} 27. Qc3 {[%emt 0:00:20]} Bb4 {[%emt 0:00:22]} 28. Qxd4 {[%emt 0:00:19]} Bc5 {[%emt 0:00:12] Weighted Error Value: White=0.57/Black=0.06 (flawless) .  Loses game:     	White=1     	---        Mistake:       	White=3     	Black=1      Inaccurate:     	White=2     	---        OK:         	White=3     	Black=6      Best:        	White=1     	Black=4} 0-1